fUST/lending_fUST_20240105
["ID","MTS","AMOUNT","RATE_DAILY","PERIOD"]
[310224464,1704403849444,-500.0,0.00039178,7]
[310224466,1704403849453,-500.0,0.00039178,7]
[310224468,1704403849463,-571.94961747,0.00039178,7]
[310224470,1704403849472,-500.0,0.00039178,7]
[310224472,1704403849483,-500.0,0.00039178,7]
[310224475,1704403849492,-15428.1,0.00039178,7]
[310224476,1704403849501,-1089.44,0.00039178,7]
[310224478,1704403849510,-1654.23,0.00039178,7]
[310224480,1704403849520,-500.0,0.00039178,7]
[310224483,1704403849529,-970.41,0.00039178,7]
[310224485,1704403849538,-1937.04,0.00039178,7]
[310224487,1704403849547,-752.89,0.00039178,7]
[310224489,1704403849556,-500.0,0.00039178,7]
[310224490,1704403849566,-500.0,0.00039178,7]
[310224492,1704403849575,-8841.35,0.00039178,7]
[310224494,1704403849585,-2898.21,0.00039178,7]
[310224496,1704403849594,-500.0,0.00039178,7]
[310224498,1704403849604,-504.52346079,0.00039178,7]
[310224500,1704403849613,-23122.23,0.00039178,7]
[310224502,1704403849622,-500.0,0.00039178,7]
[310224504,1704403849631,-6129.7,0.00039178,7]
[310224507,1704403849641,-500.0,0.00039178,7]
[310224509,1704403849651,-500.0,0.00039178,7]
[310224510,1704403849661,-603.41,0.00039178,7]
[310224513,1704403849671,-500.0,0.00039178,7]
[310224515,1704403849681,-1388.33,0.00039178,7]
[310224517,1704403849692,-504.9345272,0.00039178,7]
[310224519,1704403849702,-500.0,0.00039178,7]
[310224522,1704403849712,-634.75,0.00039178,7]
[310224524,1704403849722,-617.62,0.00039178,7]
[310224527,1704403849731,-2149.26,0.00039178,7]
[310224530,1704403849740,-514.12863622,0.00039178,7]
[310224533,1704403849751,-2932.15,0.00039178,7]
[310224537,1704403849761,-2164.45,0.00039178,7]
[310224539,1704403849771,-500.0,0.00039178,7]
[310224541,1704403849781,-500.0,0.00039178,7]
[310224542,1704403849790,-500.0,0.00039178,7]
[310224544,1704403849801,-500.0,0.00039178,7]
[310224547,1704403849811,-500.0,0.00039178,7]
[310224548,1704403849821,-2032.27,0.00039178,7]
[310224550,1704403849832,-841.33,0.00039178,7]
[310224553,1704403849842,-768.62,0.00039178,7]
[310224555,1704403849853,-500.0,0.00039178,7]
[310224557,1704403849863,-508.70862764,0.00039178,7]
[310224558,1704403849874,-3336.95,0.00039178,7]
[310224560,1704403849885,-516.67528171,0.00039178,7]
[310224562,1704403849895,-500.0,0.00039178,7]
[310224564,1704403849905,-500.0,0.00039178,7]
[310224567,1704403849914,-608.97,0.00039178,7]
[310224569,1704403849925,-500.0,0.00039178,7]
[310224570,1704403849935,-500.0,0.00039178,2]
[310224572,1704403849948,-500.0,0.00039178,7]
[310224574,1704403849957,-500.0,0.00039178,7]
[310224576,1704403849966,-500.0,0.00039178,7]
[310224578,1704403849976,-500.0,0.00039178,7]
[310224580,1704403849987,-500.0,0.00039178,7]
[310224582,1704403849997,-151.0,0.00039178,2]
[310224584,1704403850012,-151.0,0.00039178,2]
[310224586,1704403850021,-151.0,0.00039178,2]
[310224588,1704403850033,-3430.92,0.000393,60]
[310224590,1704403850043,-10000.0,0.000393,60]
[310224592,1704403850052,-301.32802853,0.00039329,2]
[310224594,1704403850062,-500.0,0.00039452,7]
[310224596,1704403850073,-500.0,0.00039452,7]
[310224598,1704403850084,-500.0,0.00039452,7]
[310224600,1704403850094,-500.0,0.00039452,7]
[310224603,1704403850105,-558.49,0.00039452,7]
[310224605,1704403850116,-550.74376636,0.00039452,7]
[310224606,1704403850126,-353.73508503,0.00039452,7]
[310224609,1704403850136,-500.0,0.00039452,7]
[310224610,1704403850146,-500.0,0.00039452,7]
[310224613,1704403850156,-500.0,0.00039452,7]
[310224614,1704403850166,-500.0,0.00039452,7]
[310224616,1704403850177,-500.0,0.00039452,7]
[310224618,1704403850187,-500.0,0.00039452,7]
[310224621,1704403850200,-500.0,0.00039452,7]
[310224623,1704403850210,-500.0,0.00039452,7]
[310224625,1704403850220,-500.0,0.00039452,7]
[310224627,1704403850230,-576.98,0.00039452,7]
[310224629,1704403850239,-500.0,0.00039452,7]
[310224631,1704403850250,-500.0,0.00039452,7]
[310224633,1704403850259,-1233.61,0.00039452,7]
[310224635,1704403850268,-500.0,0.00039452,7]
[310224637,1704403850279,-517.5,0.00039452,7]
[310224638,1704403850288,-500.0,0.00039452,7]
[310224641,1704403850297,-371.54584407,0.00039452,7]
[310224642,1704403850307,-500.0,0.00039452,7]
[310224645,1704403850316,-500.0,0.00039452,7]
[310224647,1704403850326,-617.08,0.00039452,7]
[310224648,1704403850337,-500.0,0.00039452,7]
[310224650,1704403850346,-691.0,0.00039452,7]
[310224652,1704403850355,-500.0,0.00039452,7]
[310224654,1704403850365,-500.0,0.00039452,7]
[310224657,1704403850375,-500.0,0.00039452,7]
[310224658,1704403850384,-500.0,0.00039452,7]
[310224660,1704403850394,-500.0,0.00039452,7]
[310224662,1704403850404,-1564.77,0.00039452,2]
[310224664,1704403850413,-500.0,0.00039452,7]
[310224666,1704403850422,-552.88,0.00039452,7]
[310224668,1704403850432,-1532.91,0.00039452,7]
[310224670,1704403850442,-500.0,0.00039452,2]
[310224672,1704403850451,-500.0,0.00039452,7]
[310224674,1704403850461,-657.4,0.00039452,7]
[310224676,1704403850470,-235.23749315,0.00039452,7]
[310224678,1704403850479,-500.0,0.00039452,7]
[310224680,1704403850489,-1000.0,0.00039452,2]
[310224682,1704403850498,-500.0,0.00039452,7]
[310224684,1704403850510,-500.0,0.00039452,7]
[310224686,1704403850519,-500.0,0.00039452,7]
[310224688,1704403850529,-500.0,0.00039452,7]
[310224690,1704403850539,-750.84,0.00039452,7]
[310224692,1704403850548,-520.0,0.00039452,7]
[310224693,1704403850557,-500.0,0.00039452,7]
[310224695,1704403850566,-500.0,0.00039452,7]
[310224697,1704403850575,-720.81,0.00039452,7]
[310224699,1704403850584,-1081.67,0.00039452,7]
[310224701,1704403850594,-500.0,0.00039452,7]
[310224703,1704403850603,-849.82,0.00039452,7]
[310224705,1704403850612,-1135.37,0.00039452,7]
[310224706,1704403850622,-3814.95,0.00039452,7]
[310224719,1704403850744,-512.69,0.00039452,7]
[310224721,1704403850754,-694.37,0.00039452,7]
[310224723,1704403850764,-748.22,0.00039452,7]
[310224725,1704403850774,-500.0,0.00039452,7]
[310224727,1704403850785,-448.55931331,0.00039452,7]
[310224729,1704403850795,-1373.82,0.00039452,7]
[310224731,1704403850805,-500.0,0.00039452,7]
[310224733,1704403850817,-500.0,0.00039452,7]
[310224735,1704403850826,-274.14481365,0.00039452,7]
[310224737,1704403850836,-500.0,0.00039452,7]
[310224739,1704403850845,-1728.79,0.00039452,7]
[310224740,1704403850855,-500.0,0.00039452,7]
[310224742,1704403850865,-500.0,0.00039452,7]
[310224744,1704403850874,-623.76,0.00039452,7]
[310224746,1704403850885,-500.0,0.00039452,7]
[310224748,1704403850894,-500.0,0.00039452,2]
[310224750,1704403850903,-500.0,0.00039452,7]
[310224752,1704403850914,-587.20681145,0.00039452,7]
[310224754,1704403850924,-1506.71,0.00039452,7]
[310224756,1704403850933,-500.0,0.00039452,7]
[310224758,1704403850944,-1047.73,0.00039452,7]
[310224760,1704403850954,-248.76667085,0.00039452,7]
[310224762,1704403850964,-500.0,0.00039452,7]
[310224764,1704403850974,-500.0,0.00039452,7]
[310224766,1704403850984,-500.0,0.00039452,7]
[310224768,1704403850994,-500.0,0.00039452,7]
[310224770,1704403851004,-500.0,0.00039452,7]
[310224772,1704403851013,-500.0,0.00039452,7]
[310224774,1704403851023,-705.34,0.00039452,7]
[310224776,1704403851033,-500.0,0.00039452,7]
[310224777,1704403851043,-744.85,0.00039452,7]
[310224779,1704403851054,-9877.37,0.00039452,7]
[310224782,1704403851066,-500.0,0.00039452,7]
[310224783,1704403851077,-500.0,0.00039452,7]
[310224785,1704403851088,-500.0,0.00039452,7]
[310224787,1704403851099,-500.0,0.00039452,7]
[310224790,1704403851109,-15428.1,0.00039452,7]
[310224791,1704403851119,-1089.44,0.00039452,7]
[310224793,1704403851130,-1654.23,0.00039452,7]
[310224795,1704403851141,-500.0,0.00039452,7]
[310224797,1704403851152,-970.41,0.00039452,7]
[310224800,1704403851163,-1937.04,0.00039452,7]
[310224802,1704403851174,-752.89,0.00039452,7]
[310224803,1704403851184,-500.0,0.00039452,7]
[310224806,1704403851196,-500.0,0.00039452,7]
[310224807,1704403851207,-8841.35,0.00039452,7]
[310224810,1704403851217,-2898.21,0.00039452,7]
[310224811,1704403851228,-500.0,0.00039452,7]
[310224814,1704403851238,-23122.23,0.00039452,7]
[310224815,1704403851248,-500.0,0.00039452,7]
[310224817,1704403851257,-6129.7,0.00039452,7]
[310224819,1704403851267,-500.0,0.00039452,7]
[310224822,1704403851288,-500.0,0.00039452,7]
[310224824,1704403851311,-603.41,0.00039452,7]
[310224826,1704403851322,-500.0,0.00039452,7]
[310224827,1704403851332,-1388.33,0.00039452,7]
[310224829,1704403851343,-500.0,0.00039452,7]
[310224831,1704403851355,-634.75,0.00039452,7]
[310224833,1704403851365,-617.62,0.00039452,7]
[310224835,1704403851374,-2149.26,0.00039452,7]
[310224837,1704403851383,-2932.15,0.00039452,7]
[310224839,1704403851392,-2164.45,0.00039452,7]
[310224841,1704403851402,-500.0,0.00039452,7]
[310224843,1704403851412,-500.0,0.00039452,7]
[310224845,1704403851421,-500.0,0.00039452,7]
[310224847,1704403851431,-500.0,0.00039452,7]
[310224849,1704403851442,-500.0,0.00039452,7]
[310224851,1704403851452,-2032.27,0.00039452,7]
[310224853,1704403851461,-841.33,0.00039452,7]
[310224855,1704403851472,-768.62,0.00039452,7]
[310224857,1704403851482,-3336.95,0.00039452,7]
[310224859,1704403851492,-500.0,0.00039452,7]
[310224861,1704403851502,-500.0,0.00039452,7]
[310224863,1704403851512,-608.97,0.00039452,7]
[310224865,1704403851522,-500.0,0.00039452,7]
[310224867,1704403851532,-500.0,0.00039452,2]
[310224869,1704403851541,-182.8,0.00039452,7]
[310224871,1704403851552,-500.0,0.00039452,7]
[310224873,1704403851561,-500.0,0.00039452,7]
[310224875,1704403851571,-500.0,0.00039452,7]
[310224877,1704403851580,-151.0,0.00039452,2]
[310224879,1704403851589,-151.0,0.00039452,2]
[310224881,1704403851599,-151.0,0.00039452,2]
[310224883,1704403851609,-308.9906704,0.00039595,2]
[310224884,1704403851619,-91593.69800747,0.00039625,2]
[310224886,1704403851629,-151.0,0.00039625,2]
[310224888,1704403851638,-151.0,0.00039625,2]
[310224890,1704403851649,-500.0,0.000397,7]
[310224892,1704403851659,-200.13943,0.000397,11]
[310224894,1704403851669,-3270.49350396,0.00039714,2]
[310224896,1704403851679,-1146.73360675,0.00039723,2]
[310224898,1704403851689,-720.01184769,0.00039723,2]
[310224900,1704403851700,-2178.65217296,0.00039723,2]
[310224902,1704403851710,-155.364495,0.00039724,2]
[310224904,1704403851720,-364.43468747,0.00039724,4]
[310224906,1704403851729,-155.19982648,0.00039724,2]
[310224908,1704403851740,-337.2644085,0.00039724,2]
[310224910,1704403851750,-7720.95449626,0.00039724,2]
[310224912,1704403851760,-3000.0,0.00039724,2]
[310224914,1704403851771,-154.92253873,0.00039724,2]
[310224916,1704403851782,-154.75239617,0.00039726,7]
[310224918,1704403851792,-227.16124238,0.00039726,2]
[310224920,1704403851801,-500.0,0.00039726,7]
[310224922,1704403851812,-500.0,0.00039726,7]
[310224924,1704403851823,-500.0,0.00039726,7]
[310224926,1704403851834,-558.49,0.00039726,7]
[310224928,1704403851846,-500.0,0.00039726,7]
[310224930,1704403851856,-500.0,0.00039726,7]
[310224932,1704403851867,-500.0,0.00039726,7]
[310224934,1704403851878,-334.82887596,0.00039726,7]
[310224936,1704403851889,-500.0,0.00039726,7]
[310224938,1704403851899,-500.0,0.00039726,7]
[310224940,1704403851909,-500.0,0.00039726,7]
[310224942,1704403851920,-500.0,0.00039726,7]
[310224944,1704403851931,-500.0,0.00039726,7]
[310224946,1704403851942,-576.98,0.00039726,7]
[310224948,1704403851953,-448.84574139,0.00039726,7]
[310224949,1704403851963,-500.0,0.00039726,7]
[310224951,1704403851974,-1233.61,0.00039726,7]
[310224953,1704403851987,-500.0,0.00039726,7]
[310224955,1704403851997,-517.5,0.00039726,7]
[310224957,1704403852008,-500.0,0.00039726,7]
[310224959,1704403852018,-500.0,0.00039726,7]
[310224961,1704403852030,-500.0,0.00039726,7]
[310224963,1704403852040,-617.08,0.00039726,7]
[310224965,1704403852050,-500.0,0.00039726,7]
[310224967,1704403852062,-691.0,0.00039726,7]
[310224969,1704403852071,-362.39558094,0.00039726,7]
[310224971,1704403852081,-435.97968672,0.00039726,7]
[310224973,1704403852092,-500.0,0.00039726,7]
[310224975,1704403852102,-564.20796246,0.00039726,7]
[310224977,1704403852112,-500.0,0.00039726,7]
[310224979,1704403852122,-1564.77,0.00039726,2]
[310224981,1704403852133,-500.0,0.00039726,7]
[310224983,1704403852143,-552.88,0.00039726,7]
[310224985,1704403852152,-1532.91,0.00039726,7]
[310224986,1704403852161,-500.0,0.00039726,2]
[310224988,1704403852171,-500.0,0.00039726,7]
[310224990,1704403852181,-657.4,0.00039726,7]
[310224992,1704403852191,-500.0,0.00039726,7]
[310224994,1704403852206,-1000.0,0.00039726,2]
[310224996,1704403852215,-500.0,0.00039726,7]
[310224998,1704403852224,-315.73629422,0.00039726,7]
[310225000,1704403852234,-500.0,0.00039726,7]
[310225002,1704403852244,-500.0,0.00039726,7]
[310225004,1704403852254,-750.84,0.00039726,7]
[310225006,1704403852265,-520.0,0.00039726,7]
[310225008,1704403852275,-500.0,0.00039726,7]
[310225010,1704403852285,-500.0,0.00039726,7]
[310225012,1704403852295,-720.81,0.00039726,7]
[310225015,1704403852305,-1081.67,0.00039726,7]
[310225016,1704403852316,-500.0,0.00039726,7]
[310225018,1704403852326,-849.82,0.00039726,7]
[310225020,1704403852338,-1135.37,0.00039726,7]
[310225022,1704403852348,-3814.95,0.00039726,7]
[310225024,1704403852359,-512.69,0.00039726,7]
[310225026,1704403852370,-694.37,0.00039726,7]
[310225028,1704403852379,-748.22,0.00039726,7]
[310225030,1704403852390,-500.0,0.00039726,7]
[310225032,1704403852399,-1373.82,0.00039726,7]
[310225034,1704403852412,-500.0,0.00039726,7]
[310225036,1704403852421,-500.0,0.00039726,7]
[310225038,1704403852433,-500.0,0.00039726,7]
[310225040,1704403852445,-1728.79,0.00039726,7]
[310225042,1704403852456,-500.0,0.00039726,7]
[310225044,1704403852468,-500.0,0.00039726,7]
[310225046,1704403852479,-623.76,0.00039726,7]
[310225048,1704403852489,-372.36805781,0.00039726,7]
[310225051,1704403852499,-500.0,0.00039726,2]
[310225052,1704403852508,-500.0,0.00039726,7]
[310225054,1704403852518,-1506.71,0.00039726,7]
[310225056,1704403852527,-500.0,0.00039726,7]
[310225058,1704403852537,-1047.73,0.00039726,7]
[310225060,1704403852547,-500.0,0.00039726,7]
[310225062,1704403852557,-500.0,0.00039726,7]
[310225064,1704403852567,-500.0,0.00039726,7]
[310225066,1704403852578,-500.0,0.00039726,7]
[310225068,1704403852588,-500.0,0.00039726,7]
[310225070,1704403852601,-500.0,0.00039726,7]
[310225072,1704403852610,-705.34,0.00039726,7]
[310225074,1704403852619,-500.0,0.00039726,7]
[310225076,1704403852629,-744.85,0.00039726,7]
[310225078,1704403852639,-9877.37,0.00039726,7]
[310225080,1704403852648,-316.34619,0.00039726,7]
[310225082,1704403852657,-505.85645545,0.00039726,7]
[310225084,1704403852667,-500.0,0.00039726,7]
[310225086,1704403852676,-500.0,0.00039726,7]
[310225088,1704403852687,-15428.1,0.00039726,7]
[310225090,1704403852699,-1089.44,0.00039726,7]
[310225092,1704403852709,-1654.23,0.00039726,7]
[310225094,1704403852720,-500.0,0.00039726,7]
[310225096,1704403852730,-970.41,0.00039726,7]
[310225098,1704403852741,-1937.04,0.00039726,7]
[310225100,1704403852751,-752.89,0.00039726,7]
[310225102,1704403852760,-500.0,0.00039726,7]
[310225104,1704403852771,-500.0,0.00039726,7]
[310225105,1704403852780,-8841.35,0.00039726,7]
[310225106,1704403852790,-2898.21,0.00039726,7]
[310225107,1704403852822,-500.0,0.00039726,7]
[310225108,1704403852833,-23122.23,0.00039726,7]
[310225109,1704403852843,-500.0,0.00039726,7]
[310225110,1704403852853,-6129.7,0.00039726,7]
[310225111,1704403852863,-500.0,0.00039726,7]
[310225112,1704403852873,-500.0,0.00039726,7]
[310225113,1704403852882,-603.41,0.00039726,7]
[310225114,1704403852892,-500.0,0.00039726,7]
[310225115,1704403852902,-1388.33,0.00039726,7]
[310225116,1704403852914,-500.0,0.00039726,7]
[310225117,1704403852925,-634.75,0.00039726,7]
[310225118,1704403852935,-617.62,0.00039726,7]
[310225119,1704403852947,-2149.26,0.00039726,7]
[310225120,1704403852957,-2932.15,0.00039726,7]
[310225121,1704403852967,-2164.45,0.00039726,7]
[310225122,1704403852977,-500.0,0.00039726,7]
[310225123,1704403852988,-500.0,0.00039726,7]
[310225124,1704403852998,-500.0,0.00039726,7]
[310225125,1704403853007,-500.0,0.00039726,7]
[310225126,1704403853018,-500.0,0.00039726,7]
[310225128,1704403853028,-2032.27,0.00039726,7]
[310225129,1704403853037,-841.33,0.00039726,7]
[310225131,1704403853047,-768.62,0.00039726,7]
[310225133,1704403853057,-3336.95,0.00039726,7]
[310225135,1704403853067,-500.0,0.00039726,7]
[310225137,1704403853077,-500.0,0.00039726,7]
[310225139,1704403853086,-608.97,0.00039726,7]
[310225141,1704403853095,-500.0,0.00039726,7]
[310225143,1704403853105,-500.0,0.00039726,2]
[310225145,1704403853116,-578.51849582,0.00039726,7]
[310225147,1704403853128,-500.0,0.00039726,7]
[310225149,1704403853138,-500.0,0.00039726,7]
[310225151,1704403853148,-203.352872,0.00039726,2]
[310225153,1704403853159,-794.90477023,0.000399,120]
[310225155,1704403853169,-245.0,0.0003997,7]
[310225157,1704403853179,-1361.0,0.00039979,15]
[310225159,1704403853189,-245.0,0.0003998,7]
[310225161,1704403853201,-4033.11945537,0.0003999,4]
[310225163,1704403853211,-245.0,0.0003999,7]
[310225165,1704403853221,-151.0,0.0003999,2]
[310225167,1704403853232,-151.0,0.0003999,2]
[310225169,1704403853242,-154.7215013,0.0004,4]
[310225171,1704403853252,-1278.70257121,0.0004,4]
[310225173,1704403853262,-154.73694719,0.0004,4]
[310225175,1704403853272,-16865.74976402,0.0004,120]
[310225177,1704403853281,-158.41656539,0.0004,2]
[310225179,1704403853291,-9609.59648544,0.0004,14]
[310225180,1704403853301,-718.30437593,0.0004,2]
[310225182,1704403853311,-2712.70654883,0.0004,2]
[310225184,1704403853322,-151.0,0.0004,14]
[310225187,1704403853333,-612.0,0.0004,30]
[310225188,1704403853343,-277.23692751,0.0004,4]
[310225190,1704403853354,-157.35924597,0.0004,4]
[310225192,1704403853364,-290.35547366,0.0004,4]
[310225194,1704403853374,-1199.94933006,0.0004,2]
[310225197,1704403853385,-1000.0,0.0004,7]
[310225198,1704403853395,-11888.099999,0.0004,7]
[310225200,1704403853405,-2591.61712256,0.0004,2]
[310225202,1704403853415,-500.0,0.0004,7]
[310225204,1704403853426,-500.0,0.0004,7]
[310225206,1704403853437,-500.0,0.0004,7]
[310225208,1704403853449,-558.49,0.0004,7]
[310225211,1704403853460,-500.0,0.0004,7]
[310225212,1704403853470,-500.0,0.0004,7]
[310225214,1704403853481,-500.0,0.0004,7]
[310225217,1704403853493,-500.0,0.0004,7]
[310225218,1704403853504,-500.0,0.0004,7]
[310225220,1704403853515,-500.0,0.0004,7]
[310225222,1704403853526,-500.0,0.0004,7]
[310225224,1704403853537,-500.0,0.0004,7]
[310225226,1704403853547,-576.98,0.0004,7]
[310225228,1704403853557,-500.0,0.0004,7]
[310225230,1704403853567,-1233.61,0.0004,7]
[310225233,1704403853579,-500.0,0.0004,7]
[310225235,1704403853589,-517.5,0.0004,7]
[310225237,1704403853598,-500.0,0.0004,7]
[310225239,1704403853608,-500.0,0.0004,7]
[310225241,1704403853618,-500.776886,0.0004,7]
[310225243,1704403853627,-617.08,0.0004,7]
[310225245,1704403853637,-500.0,0.0004,7]
[310225247,1704403853649,-691.0,0.0004,7]
[310225249,1704403853659,-500.0,0.0004,7]
[310225250,1704403853670,-500.0,0.0004,7]
[310225252,1704403853680,-1564.77,0.0004,2]
[310225254,1704403853690,-500.0,0.0004,7]
[310225256,1704403853701,-552.88,0.0004,7]
[310225258,1704403853711,-1532.91,0.0004,7]
[310225261,1704403853722,-500.0,0.0004,2]
[310225263,1704403853733,-500.0,0.0004,7]
[310225265,1704403853743,-657.4,0.0004,7]
[310225267,1704403853752,-500.0,0.0004,7]
[310225269,1704403853761,-1000.0,0.0004,2]
[310225271,1704403853770,-500.0,0.0004,7]
[310225272,1704403853780,-500.0,0.0004,7]
[310225274,1704403853789,-500.0,0.0004,7]
[310225276,1704403853798,-750.84,0.0004,7]
[310225278,1704403853807,-520.0,0.0004,7]
[310225281,1704403853816,-500.0,0.0004,7]
[310225283,1704403853829,-500.0,0.0004,7]
[310225285,1704403853838,-720.81,0.0004,7]
[310225287,1704403853848,-1081.67,0.0004,7]
[310225289,1704403853857,-500.0,0.0004,7]
[310225291,1704403853867,-849.82,0.0004,7]
[310225293,1704403853876,-1135.37,0.0004,7]
[310225295,1704403853887,-3814.95,0.0004,7]
[310225297,1704403853897,-512.69,0.0004,7]
[310225299,1704403853906,-694.37,0.0004,7]
[310225301,1704403853915,-748.22,0.0004,7]
[310225303,1704403853925,-446.66720721,0.0004,7]
[310225305,1704403853934,-1373.82,0.0004,7]
[310225307,1704403853944,-500.0,0.0004,7]
[310225309,1704403853953,-500.0,0.0004,7]
[310225311,1704403853963,-500.0,0.0004,7]
[310225313,1704403853973,-1728.79,0.0004,7]
[310225315,1704403853984,-500.0,0.0004,7]
[310225317,1704403853993,-500.0,0.0004,7]
[310225319,1704403854006,-623.76,0.0004,7]
[310225321,1704403854015,-500.0,0.0004,2]
[310225323,1704403854024,-500.0,0.0004,7]
[310225325,1704403854034,-1506.71,0.0004,7]
[310225327,1704403854045,-500.0,0.0004,7]
[310225329,1704403854055,-1047.73,0.0004,7]
[310225332,1704403854065,-500.0,0.0004,7]
[310225334,1704403854076,-500.0,0.0004,7]
[310225336,1704403854086,-500.0,0.0004,7]
[310225338,1704403854095,-500.0,0.0004,7]
[310225340,1704403854105,-500.0,0.0004,7]
[310225342,1704403854114,-500.0,0.0004,7]
[310225344,1704403854123,-705.34,0.0004,7]
[310225346,1704403854133,-500.0,0.0004,7]
[310225348,1704403854142,-744.85,0.0004,7]
[310225350,1704403854151,-9877.37,0.0004,7]
[310225351,1704403854161,-500.0,0.0004,7]
[310225354,1704403854172,-500.0,0.0004,7]
[310225356,1704403854183,-15428.1,0.0004,7]
[310225357,1704403854194,-1089.44,0.0004,7]
[310225359,1704403854204,-1654.23,0.0004,7]
[310225361,1704403854213,-500.0,0.0004,7]
[310225364,1704403854223,-970.41,0.0004,7]
[310225365,1704403854233,-1937.04,0.0004,7]
[310225367,1704403854242,-752.89,0.0004,7]
[310225370,1704403854252,-151.0,0.0004,2]
[310225371,1704403854262,-500.0,0.0004,7]
[310225374,1704403854271,-151.0,0.0004,2]
[310225375,1704403854281,-500.0,0.0004,7]
[310225378,1704403854291,-8841.35,0.0004,7]
[310225380,1704403854301,-2898.21,0.0004,7]
[310225382,1704403854310,-500.0,0.0004,7]
[310225384,1704403854320,-23122.23,0.0004,7]
[310225386,1704403854329,-500.0,0.0004,7]
[310225388,1704403854339,-6129.7,0.0004,7]
[310225390,1704403854349,-500.0,0.0004,7]
[310225392,1704403854358,-500.0,0.0004,7]
[310225394,1704403854367,-603.41,0.0004,7]
[310225395,1704403854376,-500.0,0.0004,7]
[310225397,1704403854386,-1388.33,0.0004,7]
[310225400,1704403854395,-500.0,0.0004,7]
[310225401,1704403854404,-634.75,0.0004,7]
[310225403,1704403854414,-617.62,0.0004,7]
[310225406,1704403854423,-2149.26,0.0004,7]
[310225407,1704403854433,-2932.15,0.0004,7]
[310225409,1704403854443,-2164.45,0.0004,7]
[310225412,1704403854453,-500.0,0.0004,7]
[310225414,1704403854462,-500.0,0.0004,7]
[310225415,1704403854472,-641.20255986,0.0004,7]
[310225418,1704403854482,-500.0,0.0004,7]
[310225420,1704403854491,-500.0,0.0004,7]
[310225422,1704403854500,-2032.27,0.0004,7]
[310225424,1704403854509,-841.33,0.0004,7]
[310225426,1704403854519,-768.62,0.0004,7]
[310225428,1704403854528,-3336.95,0.0004,7]
[310225430,1704403854537,-500.0,0.0004,7]
[310225431,1704403854546,-500.0,0.0004,7]
[310225434,1704403854555,-608.97,0.0004,7]
[310225436,1704403854564,-500.0,0.0004,7]
[310225438,1704403854574,-562.26380155,0.0004,2]
[310225440,1704403854583,-500.0,0.0004,7]
[310225442,1704403854592,-500.0,0.0004,7]
[310225444,1704403854602,-371.23559799,0.00040008,2]
[310225446,1704403854610,-246.44628881,0.00040096,2]
[310225448,1704403854620,-586.17383945,0.00040271,4]
[310225450,1704403854629,-26852.07094496,0.00040272,4]